[Event "12th Arad Open 2019"]
[Site "Arad"]
[Date "2019.07.30"]
[Round "8.29"]
[White "Radulescu, Andrei"]
[Black "Kantorik, Marian"]
[Result "1-0"]
[ECO "A06"]
[WhiteElo "1844"]
[BlackElo "2196"]
[Annotator "NA"]
[PlyCount "105"]
[EventDate "2019.07.24"]
[EventType "swiss"]
[EventCountry "ROU"]
[SourceTitle "playchess.com"]
[Source "ChessBase"]
[SourceQuality "1"]
[TimeControl "40/5400+30:900+30"]

1. Nf3 {[%emt 0:00:00]} d5 {[%emt 0:08:02]} 2. e3 {[%emt 0:00:50]} Nf6 {[%emt 0:00:15]} 3. c4 {[%emt 0:00:09]} c6 {[%emt 0:00:35]} 4. b3 {[%emt 0:00:08]} Bg4 {[%emt 0:00:35]} 5. Bb2 {[%emt 0:00:13]} e6 {[%emt 0:00:12]} 6. Be2 {[%emt 0:00:23]} Nbd7 {[%emt 0:00:07]} 7. d4 {[%emt 0:00:52]} Bb4+ {[%emt 0:01:21]} 8. Nbd2 {[%emt 0:04:28]} Ne4 {[%emt 0:03:51]} 9. O-O {[%emt 0:05:54]} Nc3 {[%emt 0:03:54]} 10. Qe1 {[%emt 0:15:34]} Nxe2+ {[%emt 0:06:22]} 11. Qxe2 {[%emt 0:00:03]} O-O {[%emt 0:04:17]} 12. a3 {[%emt 0:06:12]} Bxd2 {[%emt 0:19:28]} 13. Qxd2 {[%emt 0:00:21]} Bxf3 {[%emt 0:00:07]} 14. gxf3 {[%emt 0:00:04]} Qg5+ {[%emt 0:00:09]} 15. Kh1 {[%emt 0:00:10]} Qh5 {[%emt 0:00:03]} 16. Qd1 {[%emt 0:01:39]} f5 {[%emt 0:00:40]} 17. f4 {[%emt 0:00:24]} Qh4 {[%emt 0:08:29]} 18. Qf3 {[%emt 0:05:35]} Rf6 {[%emt 0:03:04]} 19. Rg1 {[%emt 0:03:00]} Rg6 {[%emt 0:03:04]} 20. Rxg6 {[%emt 0:04:09]} hxg6 {[%emt 0:00:04]} 21. Rg1 {[%emt 0:01:17]} Kf7 {[%emt 0:00:12]} 22. Qg3 {[%emt 0:01:31]} Qh5 {[%emt 0:02:18]} 23. f3 {[%emt 0:01:19]} Rh8 {[%emt 0:02:54]} 24. Rg2 {[%emt 0:00:55]} Rh6 {[%emt 0:01:29]} 25. Kg1 {[%emt 0:02:14]} Qh4 {[%emt 0:01:49]} 26. Bc3 {[%emt 0:04:14]} b6 {[%emt 0:03:52]} 27. Qxh4 {[%emt 0:05:13]} Rxh4 {[%emt 0:00:06]} 28. Kf2 {[%emt 0:00:02]} Rh8 {[%emt 0:00:42]} 29. Ke2 {[%emt 0:00:15]} Nf6 {[%emt 0:00:39]} 30. Bb4 {[%emt 0:01:52]} a5 {[%emt 0:02:20]} 31. Bd6 {[%emt 0:03:01]} a4 {[%emt 0:00:51]} 32. c5 {[%emt 0:01:21]} bxc5 33. Bxc5 {[%emt 0:00:07]} axb3 {[%emt 0:02:43]} 34. Kd3 {[%emt 0:01:42]} Nd7 {[%emt 0:02:44]} 35. Kc3 {[%emt 0:04:25]} Rh3 {[%emt 0:06:54]} 36. Rf2 {[%emt 0:00:53]} g5 {[%emt 0:00:50]} 37. fxg5 {[%emt 0:00:38]} e5 {[%emt 0:00:13]} 38. Kxb3 {[%emt 0:00:58]} e4 {[%emt 0:03:47]} 39. fxe4 {[%emt 0:00:29]} Rxe3+ {[%emt 0:00:08]} 40. Kb4 {[%emt 0:00:00]} dxe4 {[%emt 0:00:00]} 41. Rxf5+ {[%emt 0:01:18]} Ke6 {[%emt 0:00:19]} 42. d5+ {[%emt 0:04:49]} Kxf5 {[%emt 0:01:58]} 43. Bxe3 {[%emt 0:00:01]} cxd5 {[%emt 0:00:12]} 44. a4 {[%emt 0:03:23]} Ke5 {[%emt 0:00:06]} 45. Kc3 {[%emt 0:00:27]} Nb8 {[%emt 0:01:36]} 46. Bd4+ {[%emt 0:02:32]} Kf5 {[%emt 0:00:06]} 47. Bxg7 {[%emt 0:00:53]} Kxg5 {[%emt 0:00:12]} 48. Kd4 {[%emt 0:00:38]} Kg6 {[%emt 0:03:06]} 49. Bf8 {[%emt 0:05:28]} Nd7 {[%emt 0:02:23]} 50. Bd6 {[%emt 0:00:38]} Kf5 {[%emt 0:00:54]} 51. a5 {[%emt 0:00:50]} Ke6 {[%emt 0:00:16]} 52. Bc7 {[%emt 0:01:06]} e3 {[%emt 0:00:32]} 53. Kxe3 1-0

[Event "12th Arad Open 2019"]
[Site "Arad"]
[Date "2019.07.30"]
[Round "8.30"]
[White "Anuta, Elefterie-Laurentiu"]
[Black "Ghimpu, Samuel-Timotei"]
[Result "1-0"]
[ECO "A40"]
[WhiteElo "1813"]
[BlackElo "2193"]
[Annotator "NA"]
[PlyCount "61"]
[EventDate "2019.07.24"]
[EventType "swiss"]
[EventCountry "ROU"]
[SourceTitle "playchess.com"]
[Source "ChessBase"]
[SourceQuality "1"]
[TimeControl "40/5400+30:900+30"]

1. d4 {[%emt 0:00:00]} g6 {[%emt 0:03:54]} 2. Nf3 {[%emt 0:00:30]} f5 {[%emt 0:00:11]} 3. Bf4 {[%emt 0:03:50]} Nf6 {[%emt 0:00:27]} 4. e3 {[%emt 0:00:59]} Bg7 {[%emt 0:00:07]} 5. Be2 {[%emt 0:00:57]} d6 {[%emt 0:00:13]} 6. Nc3 {[%emt 0:13:20]} O-O {[%emt 0:01:07]} 7. Qd2 {[%emt 0:01:39]} c6 {[%emt 0:00:19]} 8. h4 {[%emt 0:03:10]} h6 {[%emt 0:02:31]} 9. O-O-O {[%emt 0:00:51]} b5 {[%emt 0:00:09]} 10. Bd3 {[%emt 0:07:09]} Qa5 {[%emt 0:00:52]} 11. a3 {[%emt 0:05:00]} Be6 {[%emt 0:05:26]} 12. Ne4 {[%emt 0:10:24]} Qa4 {[%emt 0:05:30]} 13. Nxf6+ {[%emt 0:00:14]} Rxf6 {[%emt 0:00:00]} 14. Qb4 {[%emt 0:02:21]} Qa6 {[%emt 0:00:15]} 15. Qd2 {[%emt 0:08:17]} Nd7 {[%emt 0:01:53]} 16. e4 {[%emt 0:00:43]} fxe4 {[%emt 0:00:10]} 17. Bxe4 {[%emt 0:00:57]} b4 {[%emt 0:00:01]} 18. Bxh6 {[%emt 0:05:37]} bxa3 {[%emt 0:01:12]} 19. b3 {[%emt 0:00:01]} Bf5 {[%emt 0:49:31]} 20. Bxg7 {[%emt 0:02:38]} Kxg7 {[%emt 0:01:00]} 21. Bxf5 {[%emt 0:01:35]} Rxf5 {[%emt 0:00:00]} 22. h5 {[%emt 0:00:32]} gxh5 {[%emt 0:02:56]} 23. Qe3 {[%emt 0:03:28]} Qa5 {[%emt 0:11:04]} 24. Qxe7+ {[%emt 0:02:21]} Rf7 {[%emt 0:00:03]} 25. Qxd6 {[%emt 0:05:59]} Nf6 {[%emt 0:00:36]} 26. Ne5 {[%emt 0:03:30]} Rb7 {[%emt 0:00:49]} 27. Rd3 {[%emt 0:02:31]} a2 {[%emt 0:02:02]} 28. Rg3+ {[%emt 0:00:29]} Kh7 {[%emt 0:00:02]} 29. Rxh5+ {[%emt 0:01:38]} Nxh5 {[%emt 0:00:09]} 30. Qg6+ {[%emt 0:01:00]} Kh8 {[%emt 0:00:11]} 31. Qxh5+ {[%emt 0:00:25]} 1-0

[Event "12th Arad Open 2019"]
[Site "Arad"]
[Date "2019.07.30"]
[Round "8.31"]
[White "Kelly, Ladislau-Endre"]
[Black "Veneteanu, Mihai"]
[Result "1-0"]
[ECO "C28"]
[WhiteElo "2182"]
[BlackElo "1668"]
[Annotator "NA"]
[PlyCount "69"]
[EventDate "2019.07.24"]
[EventType "swiss"]
[EventCountry "ROU"]
[SourceTitle "playchess.com"]
[Source "ChessBase"]
[SourceQuality "1"]
[TimeControl "40/5400+30:900+30"]

1. e4 {[%emt 0:08:30]} e5 {[%emt 0:00:00]} 2. Bc4 {[%emt 0:00:48]} Nf6 {[%emt 0:00:00]} 3. Nc3 {[%emt 0:00:50]} Nc6 {[%emt 0:01:08]} 4. d3 {[%emt 0:00:29]} h6 {[%emt 0:04:55]} 5. Nf3 {[%emt 0:01:03]} Bc5 {[%emt 0:00:51]} 6. h3 {[%emt 0:04:21]} d6 {[%emt 0:02:18]} 7. Na4 {[%emt 0:04:04]} Bb6 {[%emt 0:01:25]} 8. Nxb6 {[%emt 0:02:15]} axb6 {[%emt 0:00:02]} 9. a3 {[%emt 0:00:17]} O-O {[%emt 0:02:00]} 10. g4 {[%emt 0:06:02]} d5 {[%emt 0:11:58]} 11. exd5 {[%emt 0:08:38]} Nxd5 {[%emt 0:00:04]} 12. Be3 {[%emt 0:07:44]} Nf4 {[%emt 0:06:11]} 13. Bxf4 {[%emt 0:06:24]} exf4 {[%emt 0:03:38]} 14. Kd2 {[%emt 0:03:01]} Qf6 {[%emt 0:02:17]} 15. c3 {[%emt 0:00:08]} Na5 {[%emt 0:05:38]} 16. Ba2 {[%emt 0:01:13]} b5 {[%emt 0:00:53]} 17. Nd4 {[%emt 0:07:36]} Bd7 {[%emt 0:01:00]} 18. h4 {[%emt 0:06:48]} c5 {[%emt 0:07:12]} 19. g5 {[%emt 0:01:46]} hxg5 {[%emt 0:13:12]} 20. hxg5 {[%emt 0:00:07]} Qxg5 {[%emt 0:00:42]} 21. Nf3 {[%emt 0:00:37]} Qf6 {[%emt 0:09:06]} 22. Qg1 {[%emt 0:01:09]} c4 {[%emt 0:01:09]} 23. Qh2 {[%emt 0:00:55]} Qh6 {[%emt 0:00:08]} 24. Qxh6 {[%emt 0:05:06]} gxh6 {[%emt 0:00:02]} 25. Rag1+ {[%emt 0:00:09]} Kh7 {[%emt 0:00:51]} 26. Ng5+ {[%emt 0:00:01]} Kg6 {[%emt 0:00:45]} 27. Ne6+ {[%emt 0:03:46]} Kf5 {[%emt 0:00:58]} 28. Nxf8 {[%emt 0:00:51]} Rxf8 {[%emt 0:00:02]} 29. Rxh6 {[%emt 0:00:19]} Nc6 {[%emt 0:08:58]} 30. Rh5+ {[%emt 0:05:05]} Kf6 {[%emt 0:00:01]} 31. Rxb5 {[%emt 0:00:44]} Ne5 {[%emt 0:00:35]} 32. Rxe5 {[%emt 0:01:05]} Kxe5 {[%emt 0:00:08]} 33. Bxc4 {[%emt 0:00:05]} Kf6 {[%emt 0:05:37]} 34. Bd5 {[%emt 0:00:25]} Rh8 {[%emt 0:01:12]} 35. Rh1 {[%emt 0:02:39]} 1-0

[Event "12th Arad Open 2019"]
[Site "Arad"]
[Date "2019.07.30"]
[Round "8.32"]
[White "Dobre, Claudiu-Cristian"]
[Black "Bucek, Eduard"]
[Result "1-0"]
[ECO "A28"]
[WhiteElo "2340"]
[BlackElo "1960"]
[Annotator "NA"]
[PlyCount "125"]
[EventDate "2019.07.24"]
[EventType "swiss"]
[EventCountry "ROU"]
[SourceTitle "playchess.com"]
[Source "ChessBase"]
[SourceQuality "1"]
[TimeControl "40/5400+30:900+30"]

1. c4 {[%emt 0:00:00]} e5 {[%emt 0:00:00]} 2. Nc3 {[%emt 0:00:00]} Nf6 {[%emt 0:00:17]} 3. Nf3 {[%emt 0:00:00]} Nc6 {[%emt 0:00:39]} 4. e3 {[%emt 0:00:00]} Bb4 {[%emt 0:02:52]} 5. Qc2 {[%emt 0:00:00]} O-O {[%emt 0:01:27]} 6. Nd5 {[%emt 0:00:19]} d6 {[%emt 0:01:48]} 7. Bd3 {[%emt 0:10:26]} h6 {[%emt 0:01:56]} 8. a3 {[%emt 0:08:47]} Bc5 {[%emt 0:00:25]} 9. b4 {[%emt 0:00:33]} Bb6 {[%emt 0:00:12]} 10. Nxb6 {[%emt 0:01:07]} axb6 {[%emt 0:00:14]} 11. Bb2 {[%emt 0:00:14]} Re8 {[%emt 0:01:04]} 12. Be2 {[%emt 0:00:04]} e4 {[%emt 0:03:01]} 13. Nd4 {[%emt 0:00:10]} Ne5 {[%emt 0:00:06]} 14. f4 {[%emt 0:04:40]} Ng6 {[%emt 0:02:24]} 15. O-O {[%emt 0:02:59]} Bd7 {[%emt 0:01:27]} 16. Qc3 {[%emt 0:00:29]} Qe7 {[%emt 0:01:29]} 17. Kh1 {[%emt 0:02:02]} c5 {[%emt 0:05:38]} 18. Nc2 {[%emt 0:01:39]} Rec8 {[%emt 0:03:17]} 19. b5 {[%emt 0:02:30]} Ne8 {[%emt 0:06:29]} 20. d4 {[%emt 0:01:19]} f5 {[%emt 0:02:50]} 21. d5 {[%emt 0:01:45]} Nf6 {[%emt 0:00:19]} 22. h3 {[%emt 0:03:46]} Rf8 {[%emt 0:01:48]} 23. g3 {[%emt 0:00:24]} Kh7 {[%emt 0:03:58]} 24. Rf2 {[%emt 0:01:17]} Rh8 {[%emt 0:02:05]} 25. Rg1 {[%emt 0:00:05]} h5 {[%emt 0:02:07]} 26. Kg2 {[%emt 0:01:01]} Kg8 {[%emt 0:00:58]} 27. Kf1 {[%emt 0:00:06]} Kf7 {[%emt 0:02:01]} 28. Ke1 {[%emt 0:00:12]} Rh7 {[%emt 0:00:42]} 29. Na1 {[%emt 0:00:30]} Rhh8 {[%emt 0:02:52]} 30. Nb3 {[%emt 0:00:06]} Rh7 {[%emt 0:00:23]} 31. Kd1 {[%emt 0:00:04]} Qd8 {[%emt 0:02:44]} 32. Kc2 {[%emt 0:00:08]} Qe7 {[%emt 0:02:00]} 33. Nc1 {[%emt 0:00:06]} Rah8 {[%emt 0:00:41]} 34. Qe1 {[%emt 0:00:56]} Qe8 {[%emt 0:00:50]} 35. Na2 {[%emt 0:00:19]} Ne7 {[%emt 0:00:58]} 36. Nc3 {[%emt 0:00:05]} Qa8 {[%emt 0:00:36]} 37. Kb1 {[%emt 0:00:51]} Rh6 {[%emt 0:01:21]} 38. Bd1 {[%emt 0:01:01]} Rg6 {[%emt 0:02:00]} 39. Rfg2 {[%emt 0:00:47]} Qa5 {[%emt 0:01:46]} 40. Bc2 {[%emt 0:00:00]} Nc8 {[%emt 0:00:00]} 41. Qc1 {[%emt 0:03:01]} Ne7 {[%emt 0:03:12]} 42. Nd1 {[%emt 0:00:31]} Qa8 {[%emt 0:01:40]} 43. a4 {[%emt 0:00:10]} Qa5 {[%emt 0:02:15]} 44. Bc3 {[%emt 0:00:06]} Qa8 {[%emt 0:00:10]} 45. Nf2 {[%emt 0:00:17]} Qc8 {[%emt 0:02:54]} 46. Ka2 {[%emt 0:10:41]} Qa8 {[%emt 0:05:54]} 47. Qd2 {[%emt 0:01:11]} Qc8 {[%emt 0:02:11]} 48. Kb2 {[%emt 0:00:11]} Qc7 {[%emt 0:00:46]} 49. Bd1 {[%emt 0:04:37]} Qc8 {[%emt 0:02:58]} 50. Kb3 {[%emt 0:27:37]} Neg8 {[%emt 0:03:16]} 51. Be2 {[%emt 0:02:59]} Rh7 {[%emt 0:02:42]} 52. Qd1 {[%emt 0:00:04]} Kf8 {[%emt 0:01:02]} 53. g4 {[%emt 0:04:15]} hxg4 {[%emt 0:00:30]} 54. hxg4 {[%emt 0:00:06]} fxg4 {[%emt 0:01:52]} 55. Nxg4 {[%emt 0:00:47]} Nxg4 {[%emt 0:02:16]} 56. Bxg4 {[%emt 0:00:07]} Bxg4 {[%emt 0:00:16]} 57. Rxg4 {[%emt 0:00:06]} Rxg4 {[%emt 0:00:20]} 58. Rxg4 {[%emt 0:00:09]} Qf5 {[%emt 0:01:06]} 59. Qg1 {[%emt 0:01:27]} Nf6 {[%emt 0:04:02]} 60. Rg5 {[%emt 0:00:10]} Qh3 {[%emt 0:01:30]} 61. Bxf6 {[%emt 0:03:27]} gxf6 {[%emt 0:00:16]} 62. Rg8+ {[%emt 0:00:06]} Ke7 {[%emt 0:00:49]} 63. Rb8 {[%emt 0:00:10]} 1-0

[Event "12th Arad Open 2019"]
[Site "Arad"]
[Date "2019.07.30"]
[Round "8.33"]
[White "Panush, Viktor"]
[Black "Manea, Alexandru"]
[Result "1/2-1/2"]
[ECO "A07"]
[WhiteElo "1957"]
[BlackElo "2333"]
[Annotator "NA"]
[PlyCount "59"]
[EventDate "2019.07.24"]
[EventType "swiss"]
[EventCountry "ROU"]
[SourceTitle "playchess.com"]
[Source "ChessBase"]
[SourceQuality "1"]
[TimeControl "40/5400+30:900+30"]

1. Nf3 {[%emt 0:00:08]} Nf6 {[%emt 0:12:43]} 2. g3 {[%emt 0:00:28]} d5 {[%emt 0:00:50]} 3. Bg2 {[%emt 0:00:23]} c6 {[%emt 0:00:08]} 4. O-O Bg4 5. d3 {[%emt 0:02:46]} e6 {[%emt 0:01:44]} 6. c4 {[%emt 0:00:13]} Nbd7 {[%emt 0:00:05]} 7. Nc3 {[%emt 0:01:44]} Be7 {[%emt 0:00:25]} 8. Be3 {[%emt 0:00:15]} O-O {[%emt 0:00:08]} 9. Qb3 {[%emt 0:00:10]} Qc7 {[%emt 0:20:21]} 10. Rac1 {[%emt 0:03:25]} Rfc8 {[%emt 0:04:38]} 11. h3 {[%emt 0:05:54]} Bxf3 {[%emt 0:01:11]} 12. Bxf3 {[%emt 0:00:18]} dxc4 {[%emt 0:00:23]} 13. dxc4 {[%emt 0:00:40]} Nc5 {[%emt 0:03:12]} 14. Qc2 {[%emt 0:02:34]} a5 {[%emt 0:00:47]} 15. b3 {[%emt 0:00:39]} Rd8 {[%emt 0:00:18]} 16. Rcd1 {[%emt 0:02:24]} h6 {[%emt 0:02:13]} 17. Kg2 {[%emt 0:02:23]} Rxd1 {[%emt 0:13:58]} 18. Rxd1 {[%emt 0:00:23]} Rd8 {[%emt 0:00:07]} 19. Rxd8+ {[%emt 0:04:45]} Qxd8 {[%emt 0:01:50]} 20. Qd2 {[%emt 0:00:16]} Qxd2 {[%emt 0:01:38]} 21. Bxd2 {[%emt 0:00:18]} Bd6 {[%emt 0:00:54]} 22. Be3 {[%emt 0:02:57]} Nfd7 {[%emt 0:00:25]} 23. Ne4 {[%emt 0:01:55]} Nxe4 {[%emt 0:01:30]} 24. Bxe4 {[%emt 0:00:15]} Kf8 {[%emt 0:00:26]} 25. Bd2 {[%emt 0:02:47]} Bb4 {[%emt 0:01:13]} 26. Bc1 {[%emt 0:00:41]} Bc5 {[%emt 0:04:47]} 27. Bd2 {[%emt 0:03:49]} Bb4 {[%emt 0:00:19]} 28. Bc1 {[%emt 0:00:13]} Bc5 {[%emt 0:04:16]} 29. Bd2 {[%emt 0:00:19]} Bb4 {[%emt 0:00:08]} 30. Bc1 1/2-1/2

[Event "12th Arad Open 2019"]
[Site "Arad"]
[Date "2019.07.30"]
[Round "8.34"]
[White "Obada, Ema"]
[Black "Ursan, Petru-Sebastian"]
[Result "1-0"]
[ECO "B31"]
[WhiteElo "1946"]
[BlackElo "2212"]
[Annotator "NA"]
[PlyCount "79"]
[EventDate "2019.07.24"]
[EventType "swiss"]
[EventCountry "ROU"]
[SourceTitle "playchess.com"]
[Source "ChessBase"]
[SourceQuality "1"]
[TimeControl "40/5400+30:900+30"]

1. e4 {[%emt 0:00:00]} c5 {[%emt 0:00:00]} 2. Nf3 {[%emt 0:00:00]} Nc6 {[%emt 0:00:00]} 3. Bb5 {[%emt 0:00:00]} g6 {[%emt 0:00:11]} 4. Bxc6 {[%emt 0:00:00]} bxc6 {[%emt 0:00:20]} 5. d4 {[%emt 0:00:07]} Bg7 {[%emt 0:00:29]} 6. dxc5 {[%emt 0:00:07]} Qa5+ {[%emt 0:00:44]} 7. Nbd2 {[%emt 0:00:07]} Ba6 {[%emt 0:00:47]} 8. Rb1 {[%emt 0:00:08]} Qxc5 {[%emt 0:11:14]} 9. b4 {[%emt 0:00:06]} Qb6 {[%emt 0:00:33]} 10. c4 {[%emt 0:00:22]} Nf6 {[%emt 0:01:30]} 11. O-O {[%emt 0:00:52]} d6 {[%emt 0:06:07]} 12. Re1 {[%emt 0:11:33]} O-O {[%emt 0:02:00]} 13. Bb2 {[%emt 0:01:19]} c5 {[%emt 0:18:22]} 14. b5 {[%emt 0:04:15]} Bb7 {[%emt 0:00:35]} 15. Qc2 {[%emt 0:02:10]} e5 {[%emt 0:05:58]} 16. Rbd1 {[%emt 0:13:44]} Nh5 {[%emt 0:01:23]} 17. Nf1 {[%emt 0:02:37]} f5 {[%emt 0:02:27]} 18. Ng5 {[%emt 0:00:51]} Bh6 {[%emt 0:01:46]} 19. Bc1 {[%emt 0:05:16]} f4 {[%emt 0:06:49]} 20. Nf3 {[%emt 0:02:46]} Rf7 {[%emt 0:06:01]} 21. Bb2 {[%emt 0:01:17]} Ng7 {[%emt 0:02:23]} 22. Bc3 {[%emt 0:04:25]} a6 {[%emt 0:05:37]} 23. a4 {[%emt 0:01:08]} axb5 {[%emt 0:00:13]} 24. a5 {[%emt 0:04:26]} Qa6 {[%emt 0:07:34]} 25. cxb5 {[%emt 0:00:15]} Qxb5 {[%emt 0:00:08]} 26. Rxd6 {[%emt 0:00:17]} c4 {[%emt 0:02:51]} 27. Nxe5 {[%emt 0:01:20]} Re7 {[%emt 0:00:22]} 28. Rb6 {[%emt 0:03:46]} Qe8 {[%emt 0:01:06]} 29. Nd2 {[%emt 0:03:05]} f3 {[%emt 0:05:35]} 30. Ndxf3 {[%emt 0:00:28]} Nh5 {[%emt 0:02:53]} 31. Bb4 {[%emt 0:02:25]} Ba6 {[%emt 0:04:25]} 32. Bxe7 {[%emt 0:00:43]} Qxe7 {[%emt 0:00:07]} 33. Nc6 {[%emt 0:01:57]} Qf7 {[%emt 0:01:18]} 34. Nfe5 {[%emt 0:00:47]} Qe6 {[%emt 0:00:25]} 35. Qb2 {[%emt 0:06:47]} Bf8 {[%emt 0:01:30]} 36. Nb8 {[%emt 0:01:59]} Qc8 {[%emt 0:01:17]} 37. Nxa6 {[%emt 0:00:28]} Rxa6 {[%emt 0:00:10]} 38. Rxa6 {[%emt 0:00:23]} Qxa6 {[%emt 0:00:07]} 39. Qb6 {[%emt 0:00:19]} Qc8 {[%emt 0:00:34]} 40. Qc6 {[%emt 0:00:00]} 1-0

[Event "12th Arad Open 2019"]
[Site "Arad"]
[Date "2019.07.30"]
[Round "8.35"]
[White "Pasti, Aron"]
[Black "Bobocea, Laurentiu-Vlad"]
[Result "1-0"]
[ECO "B90"]
[WhiteElo "2209"]
[BlackElo "1908"]
[Annotator "NA"]
[PlyCount "83"]
[EventDate "2019.07.24"]
[EventType "swiss"]
[EventCountry "ROU"]
[SourceTitle "playchess.com"]
[Source "ChessBase"]
[SourceQuality "1"]
[TimeControl "40/5400+30:900+30"]

1. e4 {[%emt 0:00:00]} c5 {[%emt 0:00:00]} 2. Nf3 {[%emt 0:00:00]} d6 {[%emt 0:00:00]} 3. d4 {[%emt 0:00:00]} cxd4 {[%emt 0:00:00]} 4. Nxd4 {[%emt 0:00:00]} Nf6 {[%emt 0:00:00]} 5. Nc3 {[%emt 0:00:00]} a6 {[%emt 0:00:00]} 6. h3 {[%emt 0:00:03]} e6 {[%emt 0:00:05]} 7. g4 {[%emt 0:00:06]} d5 {[%emt 0:00:06]} 8. Nde2 {[%emt 0:06:17]} Bb4 {[%emt 0:13:05]} 9. Bg2 {[%emt 0:01:54]} Nxe4 {[%emt 0:01:17]} 10. Bxe4 {[%emt 0:00:40]} dxe4 {[%emt 0:00:07]} 11. Qxd8+ {[%emt 0:01:20]} Kxd8 {[%emt 0:00:01]} 12. Bf4 {[%emt 0:06:44]} Bd7 {[%emt 0:35:24]} 13. O-O-O {[%emt 0:02:22]} Ke7 {[%emt 0:02:10]} 14. Nxe4 {[%emt 0:17:42]} Bc6 {[%emt 0:02:59]} 15. N2g3 {[%emt 0:06:53]} Nd7 {[%emt 0:06:12]} 16. c3 {[%emt 0:05:11]} Ba5 {[%emt 0:00:23]} 17. Bd6+ {[%emt 0:00:53]} Ke8 {[%emt 0:14:10]} 18. Rhe1 {[%emt 0:03:32]} Nf6 {[%emt 0:05:08]} 19. Nxf6+ {[%emt 0:06:57]} gxf6 {[%emt 0:00:02]} 20. Bc5 {[%emt 0:01:57]} Bd8 {[%emt 0:10:10]} 21. Nf5 {[%emt 0:00:29]} Rg8 {[%emt 0:03:01]} 22. Nd6+ {[%emt 0:00:08]} Kf8 {[%emt 0:00:21]} 23. Nxb7+ {[%emt 0:03:03]} Be7 {[%emt 0:00:04]} 24. Bxe7+ {[%emt 0:01:45]} Kxe7 {[%emt 0:00:07]} 25. Nc5 {[%emt 0:01:13]} Ra7 {[%emt 0:01:31]} 26. Re3 {[%emt 0:05:15]} h5 {[%emt 0:00:50]} 27. f3 {[%emt 0:02:10]} Rg5 {[%emt 0:01:32]} 28. b4 {[%emt 0:00:56]} hxg4 {[%emt 0:00:31]} 29. fxg4 {[%emt 0:01:01]} f5 {[%emt 0:00:27]} 30. gxf5 {[%emt 0:02:13]} Rxf5 {[%emt 0:00:01]} 31. Rd2 {[%emt 0:01:02]} Rh5 {[%emt 0:02:37]} 32. Kb2 {[%emt 0:00:57]} e5 {[%emt 0:01:49]} 33. c4 {[%emt 0:02:30]} f6 {[%emt 0:00:11]} 34. a4 {[%emt 0:00:34]} Rh4 {[%emt 0:00:08]} 35. Kb3 {[%emt 0:00:51]} Bd7 {[%emt 0:01:38]} 36. b5 {[%emt 0:10:05]} axb5 {[%emt 0:00:02]} 37. axb5 {[%emt 0:00:17]} Bc8 {[%emt 0:01:37]} 38. b6 {[%emt 0:02:11]} Ra8 {[%emt 0:00:08]} 39. Kb4 {[%emt 0:05:01]} Rxh3 {[%emt 0:00:46]} 40. Rxh3 {[%emt 0:00:00]} Bxh3 {[%emt 0:00:00]} 41. b7 {[%emt 0:05:59]} Rb8 {[%emt 0:00:03]} 42. Kb5 {[%emt 0:00:50]} 1-0

[Event "12th Arad Open 2019"]
[Site "Arad"]
[Date "2019.07.30"]
[Round "8.36"]
[White "Illes, Sandor-Ferenc"]
[Black "Martian, Dragos-Daniel"]
[Result "0-1"]
[ECO "B40"]
[WhiteElo "1924"]
[BlackElo "2201"]
[Annotator "NA"]
[PlyCount "44"]
[EventDate "2019.07.24"]
[EventType "swiss"]
[EventCountry "ROU"]
[SourceTitle "playchess.com"]
[Source "ChessBase"]
[SourceQuality "1"]
[TimeControl "40/5400+30:900+30"]

1. e4 {[%emt 0:00:00]} c5 {[%emt 0:06:22]} 2. Nf3 {[%emt 0:00:00]} e6 {[%emt 0:00:05]} 3. b3 {[%emt 0:00:12]} d6 {[%emt 0:00:19]} 4. d4 {[%emt 0:00:29]} cxd4 {[%emt 0:01:04]} 5. Nxd4 {[%emt 0:00:34]} Nf6 {[%emt 0:00:05]} 6. Bd3 {[%emt 0:00:46]} Nc6 {[%emt 0:03:31]} 7. Nxc6 {[%emt 0:04:45]} bxc6 {[%emt 0:00:01]} 8. Bb2 {[%emt 0:00:23]} e5 {[%emt 0:00:22]} 9. O-O {[%emt 0:02:01]} Be7 {[%emt 0:00:08]} 10. c4 {[%emt 0:03:04]} Be6 {[%emt 0:03:10]} 11. Qe2 {[%emt 0:12:12]} Qb6 {[%emt 0:02:24]} 12. Nc3 {[%emt 0:02:55]} h5 {[%emt 0:00:33]} 13. Kh1 {[%emt 0:13:10]} h4 {[%emt 0:00:23]} 14. Na4 {[%emt 0:02:33]} Qd8 {[%emt 0:01:54]} 15. f4 {[%emt 0:09:14]} exf4 {[%emt 0:02:06]} 16. e5 {[%emt 0:04:43]} Nh5 {[%emt 0:01:48]} 17. exd6 {[%emt 0:03:39]} Qxd6 {[%emt 0:01:46]} 18. Qe4 {[%emt 0:05:21]} Rd8 {[%emt 0:15:17]} 19. Rad1 {[%emt 0:03:44]} Bg4 {[%emt 0:00:48]} 20. Be2 {[%emt 0:03:30]} Ng3+ {[%emt 0:01:47]} 21. hxg3 {[%emt 0:07:19]} hxg3+ {[%emt 0:00:23]} 22. Kg1 {[%emt 0:00:09]} Rh1+ {[%emt 0:00:09]} 0-1